bitfinex-derivatives/quotes_SOLF0:USTF0_20241027
["timestamp","ask_amount","ask_price","bid_price","bid_amount"]
[1729988800428,4.08,170.85,170.81,8.0990611]
[1729988800730,2.9302,170.84,170.81,8.0990611]
[1729988800929,2.9302,170.84,170.83,8.0990611]
[1729988801918,2.9299,170.85,170.83,8.0990611]
[1729988806232,2.9304,170.82,170.78,2.9309]
[1729988806425,2.9304,170.82,170.8,8.0990611]
[1729988806622,12.1790611,170.86,170.81,8.0990611]
[1729988807131,4.08,170.86,170.82,8.0990611]
[1729988808232,2.9299,170.85,170.82,8.0990611]
[1729988808432,4.08,170.86,170.82,8.0990611]
[1729988809432,2.9302,170.83,170.82,8.0990611]
[1729988809635,2.9302,170.83,170.81,8.0990611]
[1729988810532,12.1790611,170.86,170.81,8.0990611]
[1729988810835,2.9302,170.83,170.81,8.0990611]
[1729988813535,2.9302,170.83,170.82,8.0990611]
[1729988817132,2.93,170.84,170.82,8.0990611]
[1729988817334,4.08,170.86,170.83,8.0990611]
[1729988818840,7.0098,170.86,170.83,8.0990611]
[1729988819041,4.08,170.86,170.83,8.0990611]
[1729988820241,57.899022,172.15,170.83,8.0990611]
[1729988820539,8.0990611,170.89,170.83,8.0990611]
[1729988820741,2.93,170.84,170.83,8.0990611]
[1729988824141,17.61,171.13,170.83,11.03786856]
[1729988824447,8.0990611,170.95,170.84,5.6967]
[1729988824645,8.0990611,170.95,170.89,8.0990611]
[1729988824846,8.0990611,170.94,170.84,1.1967]
[1729988825139,4.5,170.93,170.87,8.0990611]
[1729988825337,4.5,170.93,170.89,8.0990611]
[1729988825732,7.4286,170.93,170.89,8.0990611]
[1729988826342,4.5,170.93,170.89,8.0990611]
[1729988828448,1.2525,170.94,170.89,8.0990611]
[1729988828650,7.4286,170.93,170.89,8.0990611]
[1729988829542,7.4286,170.93,170.82,2.494]
[1729988829543,2.9293,170.89,170.82,1.2701]
[1729988829742,18.8625,170.94,170.85,8.0990611]
[1729988829743,4.5,170.88,170.85,8.0990611]
[1729988829942,4.5,170.88,170.83,8.0990611]
[1729988830144,4.5,170.88,170.76,2.483]
[1729988830349,2.9301,170.84,170.78,2.931]
[1729988830645,4.5,170.83,170.77,1.2582]
[1729988830836,4.5,170.85,170.84,8.0990611]
[1729988832546,4.5,170.86,170.84,8.0990611]
[1729988832735,8.0990611,170.92,170.83,2.9301]
[1729988832736,4.5,170.87,170.85,8.0990611]
[1729988832937,4.5,170.87,170.86,8.0990611]
[1729988835839,4.5,170.87,170.86,11.0287611]
[1729988836040,4.5,170.87,170.86,8.0990611]
[1729988836849,4.5,170.87,170.86,11.0287611]
[1729988837042,4.5,170.89,170.86,8.0990611]
[1729988837243,4.5,170.89,170.88,8.0990611]
[1729988839348,4.5,170.92,170.88,11.0283611]
[1729988839547,4.5,170.92,170.83,1.2808]
[1729988839548,4.5,170.92,170.91,8.0990611]
[1729988841142,4.5,170.92,170.83,1.2808]
[1729988841348,4.5,170.92,170.83,5.7808]
[1729988841653,4.5,170.92,170.87,8.0990611]
[1729988841842,4.5,170.92,170.84,8.0990611]
[1729988841843,8.0990611,170.9,170.84,8.0990611]
[1729988842957,8.0990611,170.9,170.83,2.9301]
[1729988843253,8.0990611,170.9,170.83,11.0291611]
[1729988843647,2.9294,170.88,170.83,11.0291611]
[1729988843849,4.5,170.87,170.85,8.0990611]
[1729988849342,8.0990611,170.86,170.68,4.5]
[1729988849555,2.9304,170.82,170.79,2.9309]
[1729988849858,4.5,170.81,170.79,2.9309]
[1729988850153,4.5,170.8,170.79,2.9309]
[1729988852155,4.5,170.8,170.79,11.0299611]
[1729988854663,4.56,170.81,170.8,2.9306]
[1729988854855,4.56,170.81,170.8,11.0296611]
[1729988859860,4.56,170.81,170.78,2.931]
[1729988860162,4.56,170.81,170.78,8.0990611]
[1729988860851,4.56,170.81,170.79,2.9307]
[1729988861847,4.56,170.81,170.77,1.2738]
[1729988862050,2.9308,170.8,170.77,4.2049]
[1729988862258,2.9308,170.8,170.77,12.3039611]
[1729988862858,4.56,170.81,170.77,9.3728611]
[1729988863059,7.4906,170.81,170.78,2.931]
[1729988864263,4.56,170.81,170.78,8.0990611]
[1729988864465,8.0990611,170.86,170.8,11.0297611]
[1729988864669,4.56,170.85,170.8,11.0297611]
[1729988865753,2.9301,170.84,170.8,11.0297611]
[1729988867664,11.0291611,170.84,170.8,11.0297611]
[1729988869457,2.9305,170.82,170.78,11.0299611]
[1729988869663,11.0295611,170.82,170.78,2.9309]
[1729988871564,11.0295611,170.82,170.79,8.0990611]
[1729988871565,2.9305,170.82,170.79,8.0990611]
[1729988872370,2.9305,170.82,170.78,11.0299611]
[1729988873666,2.9305,170.82,170.79,2.9308]
[1729988875466,7.4903,170.83,170.79,11.0297611]
[1729988877767,7.4903,170.83,170.79,8.0990611]
[1729988878571,7.4903,170.83,170.79,11.0298611]
[1729988879168,7.4903,170.83,170.79,8.0990611]
[1729988879368,7.4903,170.83,170.8,2.9307]
[1729988880777,2.9304,170.82,170.79,11.0299611]
[1729988881375,2.9304,170.82,170.79,2.9309]
[1729988881576,11.0298611,170.8,170.76,2.9313]
[1729988881880,4.56,170.79,170.76,2.9313]
[1729988884281,2.9313,170.77,170.74,2.9317]
[1729988885775,2.9313,170.77,170.74,11.0307611]
[1729988885979,2.9311,170.78,170.75,2.9314]
[1729988886379,2.9311,170.78,170.75,11.0304611]
[1729988886584,4.56,170.79,170.75,8.0990611]
[1729988886783,2.9308,170.8,170.77,8.0990611]
[1729988886987,3.4629,170.84,170.77,8.0990611]
[1729988886988,4.44,170.79,170.77,8.0990611]
[1729988887197,8.0990611,170.83,170.78,8.0990611]
[1729988887484,2.9306,170.81,170.78,8.0990611]
[1729988889483,4.44,170.8,170.78,8.0990611]
[1729988893297,4.44,170.8,170.77,11.0301611]
[1729988893590,2.9311,170.78,170.75,8.0990611]
[1729988893797,12.5390611,170.8,170.75,8.0990611]
[1729988894295,2.9309,170.79,170.75,11.0305611]
[1729988895395,12.5390611,170.8,170.75,11.0305611]
[1729988895396,12.5390611,170.8,170.75,8.0990611]
[1729988895597,15.4699611,170.8,170.76,2.9314]
[1729988896891,15.4699611,170.8,170.75,8.0990611]
[1729988896892,12.5390611,170.8,170.75,8.0990611]
[1729988897601,15.4698611,170.8,170.76,2.9313]
[1729988899395,1.2759,170.84,170.77,8.0990611]
[1729988899601,2.9304,170.82,170.78,2.9309]
[1729988901003,2.9304,170.82,170.78,11.0299611]
[1729988902202,2.9302,170.83,170.79,11.0298611]
[1729988902403,4.44,170.81,170.79,11.0298611]
[1729988902798,4.44,170.81,170.74,8.99019264]
[1729988902799,12.5390611,170.81,170.74,8.99019264]
[1729988903005,8.0990611,170.79,170.75,1.46601924]
[1729988903300,11.0305611,170.76,170.72,9.2886611]
[1729988903600,11.0305611,170.76,170.58,56.94]
[1729988903601,12.5390611,170.75,170.67,1.2431]
[1729988903806,4.44,170.74,170.69,8.0990611]
[1729988904301,8.0990611,170.73,170.7,1.4664344]
[1729988904598,8.0990611,170.73,170.68,5.0467417]
[1729988904800,8.0990611,170.73,170.69,1.46651566]
[1729988905001,2.9322,170.72,170.68,2.9326]
[1729988905198,8.0990611,170.73,170.69,1.46651634]
[1729988905400,8.0990611,170.73,170.67,10.6026611]
[1729988905712,12.5390611,170.74,170.69,8.0990611]
[1729988906296,2.932,170.73,170.69,11.0316611]
[1729988907002,2.932,170.73,170.67,2.5036]
[1729988907003,12.5390611,170.74,170.67,2.5036]
[1729988907196,4.44,170.74,170.7,8.0990611]
[1729988908107,4.44,170.74,170.71,2.9321]
[1729988911913,7.3719,170.74,170.71,2.9322]
[1729988912104,12.5390611,170.74,170.68,8.0990611]
[1729988912407,12.5390611,170.74,170.69,6.51359965]
[1729988912602,12.5390611,170.74,170.7,1.46642685]
[1729988912603,2.932,170.73,170.7,1.46642685]
[1729988912808,2.932,170.73,170.68,8.0990611]
[1729988913009,2.932,170.73,170.69,6.51359803]
[1729988913213,2.932,170.73,170.68,8.0990611]
[1729988913214,2.932,170.73,170.7,1.46642644]
[1729988913508,2.932,170.73,170.68,8.0990611]
[1729988913811,2.932,170.73,170.69,6.51359464]
[1729988914008,2.932,170.73,170.7,1.46643334]
[1729988914207,2.932,170.73,170.68,8.0990611]
[1729988914411,2.932,170.73,170.7,2.9324]
[1729988916918,2.932,170.73,170.71,1.46642643]
[1729988917214,2.932,170.73,170.7,2.9324]
[1729988917413,2.932,170.73,170.71,1.46642643]
[1729988917713,2.932,170.73,170.7,2.9324]
[1729988917913,2.932,170.73,170.71,1.46643333]
[1729988918213,2.932,170.73,170.7,2.9324]
[1729988918414,2.932,170.73,170.71,1.46643333]
[1729988918611,2.932,170.73,170.7,2.9324]
[1729988918820,2.932,170.73,170.71,1.46643333]
[1729988919024,2.932,170.73,170.7,2.9324]
[1729988919209,2.932,170.73,170.71,1.46643434]
[1729988919507,2.932,170.73,170.7,2.9324]
[1729988919709,2.932,170.73,170.71,1.46643419]
[1729988920012,2.932,170.73,170.7,2.9324]
[1729988920216,2.932,170.73,170.71,1.46643419]
[1729988920415,2.932,170.73,170.7,2.9324]
[1729988920610,2.932,170.73,170.71,1.46643252]
[1729988920810,2.932,170.73,170.7,2.9324]
[1729988921013,2.932,170.73,170.71,1.46643252]
[1729988921212,2.932,170.73,170.7,2.9324]
[1729988921412,2.932,170.73,170.71,1.46643403]
[1729988921717,2.932,170.73,170.7,2.9324]
[1729988921915,2.932,170.73,170.71,1.46643403]
[1729988922117,2.932,170.73,170.7,2.9324]
[1729988922510,2.932,170.73,170.71,1.46643403]
[1729988922809,2.932,170.73,170.7,2.9324]
[1729988923010,2.932,170.73,170.71,1.46643403]
[1729988923213,2.932,170.73,170.7,2.9324]
[1729988923419,2.932,170.73,170.71,1.46642714]
[1729988923621,2.932,170.73,170.7,2.9324]
[1729988923818,2.932,170.73,170.71,1.46642673]
[1729988924112,2.4706,170.8,170.68,8.0990611]
[1729988924313,11.0306611,170.75,170.72,2.932]
[1729988924506,4.36,170.74,170.72,2.932]
[1729988926319,7.2918,170.74,170.72,2.932]
[1729988927421,4.36,170.74,170.72,2.932]
[1729988930013,12.4590611,170.74,170.72,2.932]
[1729988930525,4.36,170.73,170.72,2.932]
[1729988940223,15.3911611,170.73,170.7,2.9324]
[1729988940430,15.3911611,170.73,170.67,9.3595611]
[1729988940634,15.3911611,170.73,170.68,10.4638]
[1729988940832,15.3911611,170.73,170.69,6.51683541]
[1729988941033,15.3911611,170.73,170.7,1.46645301]
[1729988941233,15.3911611,170.73,170.7,2.9323]
[1729988948037,15.3911611,170.73,170.71,1.46646202]
[1729988948230,15.3911611,170.73,170.7,2.9323]
[1729988948428,15.3911611,170.73,170.71,1.46645126]
[1729988948726,15.3911611,170.73,170.7,2.9323]
[1729988948926,15.3911611,170.73,170.71,1.46645141]
[1729988949126,15.3911611,170.73,170.7,2.9323]
[1729988949340,15.3911611,170.73,170.71,1.46645141]
[1729988949539,15.3911611,170.73,170.7,2.9323]
[1729988949741,15.3911611,170.73,170.71,1.46645831]
[1729988949938,15.3911611,170.73,170.7,2.9323]
[1729988950338,15.3911611,170.73,170.71,1.46645831]
[1729988950535,15.3911611,170.73,170.7,2.9323]
[1729988950730,15.3911611,170.73,170.64,1.2142]
[1729988950731,8.0990611,170.72,170.64,1.2142]
[1729988951039,8.0990611,170.68,170.65,10.47281915]
[1729988951243,2.932,170.73,170.7,2.9324]
[1729988951433,4.26,170.72,170.7,2.9324]
[1729988951837,4.26,170.71,170.7,2.9324]
[1729988952036,4.26,170.71,170.7,4.39898033]
[1729988953345,4.26,170.71,170.7,2.9324]
[1729988958841,4.26,170.71,170.7,4.39889517]
[1729988959251,4.26,170.71,170.7,2.9324]
[1729988959548,4.26,170.71,170.7,4.39889517]
[1729988959749,4.26,170.71,170.7,2.9324]
[1729988960444,8.0990611,170.74,170.7,1.46652501]
[1729988960746,4.26,170.73,170.69,8.0990611]
[1729988960947,4.26,170.73,170.7,10.47568892]
[1729988961142,4.26,170.73,170.71,6.52350286]
[1729988961339,4.26,170.73,170.69,8.0990611]
[1729988961543,4.26,170.73,170.71,2.9321]
[1729988962449,4.26,170.73,170.72,1.46643256]
[1729988962950,11.0307611,170.75,170.72,2.9319]
[1729988963150,4.26,170.74,170.72,4.39833256]
[1729988963339,8.0990611,170.77,170.72,8.0990611]
[1729988963542,8.0990611,170.77,170.74,11.0306611]
[1729988963543,4.26,170.76,170.74,11.0306611]
[1729988964343,2.9311,170.78,170.75,2.9315]
[1729988964546,4.26,170.77,170.75,2.9315]
[1729988966052,4.26,170.77,170.75,11.0305611]
[1729988966440,4.26,170.77,170.75,8.0990611]
[1729988966641,4.26,170.77,170.76,2.9314]
[1729988966850,4.1683,170.8,170.75,8.0990611]
[1729988967050,4.26,170.79,170.76,2.9313]
[1729988968155,7.1909,170.79,170.76,2.9313]
[1729988968858,1.3056,170.84,170.77,8.0990611]
[1729988969156,2.9308,170.8,170.77,8.0990611]
[1729988969551,4.26,170.79,170.77,8.0990611]
[1729988972662,4.26,170.79,170.77,11.0302611]
[1729988974867,2.9299,170.86,170.81,2.9304]
[1729988975059,8.0990611,170.87,170.8,8.0990611]
[1729988975257,8.0990611,170.85,170.8,8.0990611]
[1729988975562,12.3590611,170.84,170.77,1.1786]
[1729988975757,4.26,170.83,170.78,14.62158237]
[1729988975959,4.26,170.83,170.78,8.0990611]
[1729988976363,2.9305,170.82,170.78,11.0300611]
[1729988976657,2.9305,170.82,170.78,8.0990611]
[1729988978264,2.9305,170.82,170.79,2.9309]
[1729988981677,7.1902,170.83,170.79,2.9309]
[1729988985569,4.26,170.83,170.81,11.0294611]
[1729988985770,4.26,170.84,170.81,8.0990611]
[1729988986181,4.26,170.84,170.82,2.9302]
[1729988986378,4.26,170.84,170.81,8.0990611]
[1729988987881,4.26,170.84,170.82,2.9302]
[1729988999092,4.26,170.84,170.81,8.0990611]
[1729988999289,5.18027514,170.92,170.85,2.9298]
[1729988999290,2.9294,170.88,170.85,2.9298]
[1729988999494,4.26,170.87,170.83,8.0990611]
[1729989000089,7.1896,170.87,170.83,11.0291611]
[1729989000483,8.0990611,170.89,170.83,11.0291611]
[1729989000687,2.9297,170.86,170.83,11.0291611]
[1729989000891,7.1897,170.86,170.83,11.0291611]
[1729989003191,4.26,170.86,170.83,8.0990611]
[1729989003398,2.929,170.9,170.86,2.9296]
[1729989003694,4.26,170.89,170.86,2.9296]
[1729989004293,7.1892,170.89,170.88,8.0990611]
[1729989004496,1.2588,170.92,170.88,8.0990611]
[1729989004795,2.9291,170.9,170.88,8.0990611]
[1729989004995,4.26,170.91,170.83,2.9301]
[1729989005192,8.0990611,170.88,170.78,2.4747]
[1729989005394,8.0990611,170.86,170.78,2.4747]
[1729989005596,12.2990611,170.85,170.8,11.0297611]
[1729989005895,4.2,170.84,170.8,11.0297611]
[1729989006290,4.2,170.84,170.81,2.9305]
[1729989006498,7.1301,170.84,170.81,2.9305]
[1729989006895,7.1301,170.84,170.82,8.0990611]
[1729989010307,4.2,170.84,170.82,8.0990611]
[1729989010695,4.2,170.84,170.81,11.0295611]
[1729989012106,4.2,170.84,170.78,2.4747]
[1729989012107,2.9305,170.82,170.79,2.9309]
[1729989012507,8.0990611,170.82,170.77,1.1786]
[1729989013609,8.0990611,170.81,170.77,1.1786]
[1729989013907,4.2,170.8,170.75,8.0990611]
[1729989014706,8.0990611,170.79,170.73,8.0990611]
[1729989015710,2.9311,170.78,170.74,2.9316]
[1729989015898,8.0990611,170.76,170.72,1.46608608]
[1729989016100,8.0990611,170.76,170.71,8.0990611]
[1729989016101,12.2990611,170.76,170.71,8.0990611]
[1729989016901,15.2305611,170.76,170.73,2.9318]
[1729989017106,4.2,170.77,170.75,8.0990611]
[1729989018308,4.2,170.79,170.76,8.0990611]
[1729989018510,4.2,170.79,170.78,8.0990611]
[1729989020507,4.2,170.79,170.78,11.0301611]
[1729989020695,2.9305,170.82,170.78,11.0301611]
[1729989020901,4.2,170.8,170.78,2.9311]
[1729989021996,4.2,170.8,170.79,8.0990611]
[1729989036412,4.2,170.8,170.78,11.0301611]
[1729989038819,4.2,170.8,170.78,11.0300611]
[1729989041021,4.2,170.8,170.79,8.0990611]
[1729989043222,4.2,170.8,170.79,11.0299611]
[1729989049227,4.16,170.83,170.79,8.0990611]
[1729989049428,4.16,170.83,170.82,8.0990611]
[1729989055430,17.61,170.97,170.82,8.0990611]
[1729989055619,12.2590611,170.93,170.88,8.0990611]
[1729989056629,2.9294,170.88,170.86,8.0990611]
[1729989056829,4.16,170.87,170.86,8.0990611]
[1729989060237,7.0895,170.87,170.86,8.0990611]
[1729989060541,7.0895,170.87,170.85,8.0990611]
[1729989061737,2.9299,170.85,170.83,8.0990611]
[1729989062035,12.2590611,170.87,170.82,8.0990611]
[1729989062238,2.93,170.85,170.82,8.0990611]
[1729989066334,12.2590611,170.87,170.76,3.6154]
[1729989066335,8.0990611,170.86,170.76,3.6154]
[1729989066535,8.0990611,170.84,170.77,10.46147349]
[1729989066731,4.16,170.83,170.79,8.0990611]
[1729989066937,2.9305,170.82,170.79,11.0299611]
[1729989073940,2.9305,170.82,170.8,8.0990611]
[1729989076444,7.0903,170.83,170.8,8.0990611]
[1729989078145,4.16,170.83,170.82,8.0990611]
[1729989079346,2.9296,170.87,170.82,8.0990611]
[1729989079548,58.2211,170.9,170.86,8.0990611]
[1729989079846,4.16,170.89,170.86,8.0990611]
[1729989080242,7.0892,170.89,170.86,8.0990611]
[1729989082144,4.16,170.89,170.86,8.0990611]
[1729989082445,56.94,170.9,170.88,8.0990611]
[1729989082650,4.16,170.89,170.8,9.00370327]
[1729989082849,4.16,170.9,170.89,8.0990611]
[1729989083643,2.9287,170.92,170.89,8.0990611]
[1729989083846,4.16,170.91,170.9,8.0990611]
[1729989084047,58.1266,170.99,170.9,8.0990611]
[1729989084048,59.4272,170.99,170.9,8.0990611]
[1729989084351,12.2590611,170.98,170.92,8.0990611]
[1729989085256,4.16,170.97,170.92,8.0990611]
[1729989086250,4.16,170.97,170.92,11.0276611]
[1729989086251,2.928,170.96,170.92,11.0276611]
[1729989086644,4.16,170.95,170.92,11.0276611]
[1729989086849,4.16,170.95,170.94,8.0990611]
[1729989089453,7.0883,170.95,170.84,10.43018555]
[1729989089650,7.0883,170.95,170.92,8.0990611]
[1729989092056,7.0882,170.95,170.93,8.0990611]
[1729989092354,66.3396611,170.99,170.94,8.0990611]
[1729989092656,4.16,170.98,170.94,8.0990611]
[1729989093363,2.9279,170.97,170.94,8.0990611]
[1729989094160,8.7767,171.11,170.94,8.0990611]
[1729989094161,2.9273,171.01,170.94,2.9283]
[1729989094460,2.9273,171.01,170.85,8.95754295]
[1729989094461,12.2590611,171.01,170.85,8.95754295]
[1729989094652,12.2590611,171.01,170.95,8.0990611]
[1729989094853,8.0990611,170.96,170.87,1.46486428]
[1729989095053,4.16,170.95,170.9,8.0990611]
[1729989095557,2.9286,170.93,170.9,8.0990611]
[1729989095860,4.16,170.95,170.92,8.0990611]
[1729989097255,7.0883,170.95,170.92,8.0990611]
[1729989098061,4.28,170.96,170.94,2.9283]
[1729989098260,4.28,170.96,170.95,8.0990611]
[1729989099153,4.28,170.96,170.95,11.0271611]
[1729989101162,4.28,170.96,170.95,8.0990611]
[1729989101363,4.28,170.96,170.89,1.1876]
[1729989101562,4.28,170.96,170.92,8.0990611]
[1729989101756,7.208,170.96,170.92,11.0276611]
[1729989102464,2.9282,170.95,170.92,8.0990611]
[1729989106470,2.9282,170.95,170.92,11.0276611]
[1729989107169,4.28,170.96,170.93,11.0274611]
[1729989110168,4.28,170.96,170.95,8.0990611]
[1729989110968,1.2362,171.05,170.95,8.0990611]
[1729989111171,1.2362,171.05,170.97,8.0990611]
[1729989111172,2.9274,171.0,170.97,8.0990611]
[1729989111373,4.28,170.99,170.97,8.0990611]
[1729989112277,7.2075,170.99,170.97,8.0990611]
[1729989112973,2.9275,170.99,170.97,8.0990611]
[1729989113172,7.2075,170.99,170.97,8.0990611]
[1729989113979,7.2075,170.99,170.95,8.0990611]
[1729989114180,7.2075,170.99,170.95,11.0271611]
[1729989114680,4.28,171.0,170.98,8.0990611]
[1729989114872,4.28,170.99,170.98,8.0990611]
[1729989117371,4.28,170.99,170.98,11.0266611]
[1729989118479,7.2071,171.01,170.98,11.0266611]
[1729989118675,7.2071,171.01,171.0,8.0990611]
[1729989118875,4.28,171.01,171.0,8.0990611]
[1729989120375,7.2071,171.01,171.0,8.0990611]
[1729989121075,7.2071,171.01,170.99,8.0990611]
[1729989121275,7.1871,171.01,170.99,8.0990611]
[1729989121477,2.9276,170.99,170.98,8.0990611]
[1729989121679,2.9276,170.99,170.96,8.0990611]
[1729989122571,12.3590611,171.01,170.9,4.26]
[1729989122776,12.3590611,171.01,170.95,8.0990611]
[1729989122975,12.3590611,171.01,170.96,8.0990611]
[1729989123477,2.9278,170.98,170.96,8.0990611]
[1729989123779,4.26,171.01,170.96,8.0990611]
[1729989123978,4.26,171.01,170.97,8.0990611]
[1729989124179,2.9274,171.0,170.99,8.0990611]
[1729989125086,4.26,171.01,170.99,8.0990611]
[1729989125383,4.26,171.01,171.0,8.0990611]
[1729989127284,2.9268,171.03,171.0,8.0990611]
[1729989127482,2.9268,171.03,171.02,8.0990611]
[1729989127691,7.1868,171.03,171.02,8.0990611]
[1729989129986,2.9268,171.03,171.02,8.0990611]
[1729989130175,7.1868,171.03,171.02,8.0990611]
[1729989130976,2.9271,171.01,171.0,8.0990611]
[1729989132886,4.26,171.03,170.98,8.0990611]
[1729989133084,2.9274,171.0,170.98,8.0990611]
[1729989134790,12.3590611,171.03,170.95,3.6914]
[1729989134979,12.3590611,171.03,170.96,8.0990611]
[1729989134980,2.9277,170.98,170.96,8.0990611]
[1729989135184,4.26,170.99,170.96,8.0990611]
[1729989135886,2.9271,171.02,170.98,11.0266611]
[1729989136195,1.2308,171.09,171.01,8.0990611]
[1729989136196,4.26,171.04,171.01,8.0990611]
[1729989137288,2.9269,171.02,171.01,8.0990611]
[1729989139192,2.9261,171.07,171.03,2.9268]
[1729989139386,2.9261,171.07,170.96,2.5625]
[1729989139387,7.1861,171.07,171.06,8.0990611]
[1729989143791,4.26,171.07,171.06,8.0990611]
[1729989144189,4.26,171.08,171.06,8.0990611]
[1729989144391,4.26,171.08,171.07,8.0990611]
[1729989145298,7.1859,171.08,171.07,8.0990611]
[1729989145686,4.26,171.08,171.07,8.0990611]
[1729989145893,4.26,171.08,171.03,2.5022]
[1729989146088,4.26,171.08,171.07,8.0990611]
[1729989146290,56.92,171.12,171.07,8.0990611]
[1729989146486,4.26,171.09,171.07,8.0990611]
[1729989146699,4.26,171.09,171.03,1.2634]
[1729989146895,4.26,171.09,171.05,8.0990611]
[1729989147493,2.9262,171.07,171.05,8.0990611]
[1729989149214,12.3590611,171.09,171.02,4.1282]
[1729989149215,2.9265,171.05,171.04,8.0990611]
[1729989149504,7.1865,171.05,171.04,8.0990611]
[1729989150112,7.1865,171.05,171.03,8.0990611]
[1729989151507,2.9266,171.04,171.03,8.0990611]
[1729989152017,4.26,171.05,171.03,8.0990611]
[1729989152312,7.1865,171.05,171.03,8.0990611]
[1729989155307,7.1865,171.05,170.98,1.3055]
[1729989155308,2.9266,171.04,171.02,8.0990611]
[1729989155611,4.26,171.05,171.02,8.0990611]
[1729989155805,2.9267,171.04,171.02,8.0990611]
[1729989156907,4.26,171.05,171.02,8.0990611]
[1729989157117,8.0990611,171.04,170.99,8.0990611]
[1729989157307,8.0990611,171.01,170.96,1.2723]
[1729989157508,2.9277,170.98,170.95,8.0990611]
[1729989157809,7.2477,170.98,170.95,8.0990611]
[1729989158012,4.32,170.98,170.95,8.0990611]
[1729989158208,2.9279,170.97,170.95,8.0990611]
[1729989158513,4.32,170.98,170.94,8.0990611]
[1729989158710,4.32,170.98,170.93,8.0990611]
[1729989158905,12.4190611,170.98,170.93,8.0990611]
[1729989159809,8.0990611,170.95,170.9,1.218]
[1729989160016,4.32,170.94,170.9,1.218]
[1729989160318,4.32,170.94,170.91,8.0990611]
[1729989162418,7.2484,170.94,170.91,8.0990611]
[1729989163218,4.32,170.94,170.9,1.218]
[1729989163419,2.9285,170.93,170.9,1.218]
[1729989164011,2.9285,170.93,170.89,11.0281611]
[1729989170421,2.9285,170.93,170.9,2.929]
[1729989172620,2.9285,170.93,170.89,11.0281611]
[1729989173721,7.2484,170.94,170.9,2.929]
[1729989174927,2.9284,170.94,170.9,2.929]
[1729989175123,4.32,170.93,170.91,11.0278611]
[1729989177528,4.32,170.93,170.91,8.0990611]
[1729989178121,4.32,170.93,170.9,12.2551611]
[1729989179715,4.32,170.93,170.9,1.2271]
[1729989179916,7.2486,170.93,170.9,9.3261611]
[1729989185522,7.2486,170.93,170.9,1.2271]
[1729989185722,7.2486,170.93,170.89,2.9291]
[1729989186126,2.9291,170.9,170.87,2.9295]
[1729989186522,8.0990611,170.91,170.86,9.3558611]
[1729989186730,11.0279611,170.91,170.88,2.9293]
[1729989187325,2.9289,170.91,170.88,2.9293]
[1729989192940,1.1965,170.98,170.9,8.0990611]
[1729989193126,1.1965,170.98,170.86,1.2568]
[1729989193127,4.26,170.97,170.92,8.0990611]
[1729989193938,2.9282,170.95,170.92,11.0276611]
[1729989194835,7.1882,170.95,170.92,11.0276611]
[1729989195341,2.9286,170.93,170.9,2.9289]
[1729989195643,8.0990611,170.94,170.89,8.0990611]
[1729989195825,8.0990611,170.94,170.89,11.0281611]
[1729989195826,2.9287,170.92,170.89,11.0281611]
[1729989196032,4.26,170.91,170.89,8.0990611]
[1729989197335,7.1889,170.91,170.89,8.0990611]
[1729989202041,7.1889,170.91,170.89,11.0282611]
[1729989202948,2.929,170.9,170.87,2.9294]
[1729989203143,2.929,170.9,170.86,1.2568]
[1729989203144,4.26,170.91,170.88,8.0990611]
[1729989203746,7.1889,170.91,170.88,11.0282611]
[1729989204137,7.1889,170.91,170.89,2.9292]
[1729989204644,2.929,170.9,170.87,2.9294]
[1729989204848,4.26,170.91,170.86,9.3558611]
[1729989205350,2.9291,170.9,170.87,2.9294]
[1729989206145,2.9291,170.9,170.88,2.9293]
[1729989208850,7.1889,170.91,170.88,2.9293]
[1729989232875,4.26,170.91,170.89,1.46513109]
[1729989233064,4.26,170.91,170.89,2.9291]